{"text_format":"1","workbook":"xlsx","n_sheets":5,"sheets":["تفقيط","فواتير ","ورقة1","جيل","ورقة2"],"not_rendered":{"charts":0,"images":3,"macros":1,"external_links":0,"defined_names":0,"comments":0,"pivot_tables":0},"unopened":[],"bounds":{"document_bytes":16777216,"sheet_cells":100000,"rows_first":2000,"rows_last":500,"rows_between":2000,"halvings":0,"cell_chars":16384,"cell_head_chars":4096},"cells_cut":0,"cells_raw":0,"read":"whole","date_system":"1900"}

{"sheet":"تفقيط","index":0,"n_rows":28,"n_cols":2,"rows_kept":28,"cut":false,"hidden":true,"merged":[]}
[]
[]
[]
[]
[]
[]
[]
[]
[]
[]
[]
[]
[]
[]
[]
[]
[]
[]
[]
[]
[]
[]
[]
[]
[]
[]
[565,{"$f":"Gm_wahdan(A27,0,\"جنية مصري\",\"جنيهات مصرية\",\"قرش\",2)","v":"فقط خمسمائة وخمسة وستون جنية مصري"}]
[1234567890.325,{"$f":"Gm_wahdan(A28,0,\"ريال سعودي\",\"ريالات سعودية\",\"فلس باين ولا ايه\",3)","v":"فقط مليار ومائتان وأربعة وثلاثون مليوناً وخمسمائة وسبعة وستون ألفاً وثمانمائة وتسعون ريال سعودياً  و (325) فلس باين ولا ايه"}]

{"sheet":"فواتير ","index":1,"n_rows":103,"n_cols":12,"rows_kept":103,"cut":false,"hidden":false,"merged":[[36,0,37,7],[0,0,2,7],[3,0,3,7],[10,5,11,5],[24,1,25,1],[24,2,25,6],[26,1,26,2]]}
[]
[]
[]
["فاتـــــورة   INVOICE "]
[null,null,null,null,11381,"NO :"]
[null,null,null,null,null,"الحسابات  Accounts"]
[null,"التاريخ :","2016-04-11","Date :","الأسم :","دكتور / محمد احمد","Name :"]
[null,"رقم امر التوريد :",null,"Order No:","الشركة :",null,"Company :"]
[null,"البائع :","د / وسام عادل","Rep :","العنوان :","القاهرة","Address :"]
[null,null,null,null,"المنطقة :","القاهرة2","area  :"]
[null,"الأجمالي ","سعر الوحدة ","سعر البيع للجمهور","الكمية","البيـــــــــان Description","رقم"]
[null,"Total","Unit Price","User Price","Qty",null,"NO"]
[null,{"$f":"C13*E13","v":21120},42.24,48,500,"Bendatreotid",1,null,null,"القاهرة","فارماكون"]
[null,0,null,null,null,null,null,null,null,"القاهرة1","د / اسكندر"]
[null,0,null,null,null,null,null,null,null,"القاهرة2","د / وسام عادل"]
[null,0,null,null,null,null,null,null,null,"الجيزة","د / سميرحسني"]
[null,0,null,null,null,null,55555,null,null,"دلتا1","د / محمد علي"]
[null,0,null,null,null,null,null,null,null,"دلتا2","د / احمد فوزي"]
[null,0,null,null,null,null,null,null,null,"دلتا3","د / محمود ابو الدهب"]
[null,0,null,null,null,null,null,null,null,"الصعيد","د / محمد صالح"]
[null,0,null,null,null,null,null,null,null,"الاسكندرية","د / اميرة محمد"]
[null,0,null,null,null,null,null,null,null,240,null,"Bendatreotid (Box)"]
[null,0,null,null,null,null,null,null,null,190,null,"Curavisc"]
[null,0,null,null,null,null,null,null,null,25,null,"Fluimucil"]
[null,{"$f":"SUM(B13:B24)","v":21120},{"$f":"Gm_wahdan(B25,0,\"جنيها مصري\",\"جنيهات مصرية\",\"قرش\",2)","v":"فقط واحد وعشرون ألفاً ومائة وعشرون جنيها مصري"},null,null,null,null,null,null,40,null,"Monuril"]
[null,null,null,null,null,null,null,null,null,62.5,null,"Vancomycin"]
[null,"ماعدا السهو والخطأ",null,null,null,null,null,null,null,48,null,"Bendatreotid"]
[null,0,null,null,null,null,null,null,null,37.5,null,"Bendafolin"]
[null,0,null,null,null,null,null,null,null,120,null,"Hidonac"]
[null,0,null,null,null,null,null,null,null,null,null,"Viscoplus"]
[null,0,null,null,null,null,null,null,null,null,null,"بضاعة بدون قيمة"]
[null,0]
[null,0]
[null,0]
[null,0]
[null,0]
[]
[]
[]
[]
[]
[]
[]
[]
[]
[]
[]
[]
[]
[]
[]
[]
[]
[1234567890.325,{"$f":"Gm_wahdan(A54,0,\"ريال سعودي\",\"ريالات سعودية\",\"فلس باين ولا ايه\",3)","v":"فقط مليار ومائتان وأربعة وثلاثون مليوناً وخمسمائة وسبعة وستون ألفاً وثمانمائة وتسعون ريال سعودياً  و (325) فلس باين ولا ايه"}]
[]
[]
[]
[]
[]
[]
[]
[]
[]
[]
[]
[]
[]
[]
[]
[]
[]
[]
[]
[]
[]
[]
[]
[]
[]
[]
[]
[]
[]
[]
[]
[]
[]
[]
[]
[]
[]
[]
[]
[]
[]
[]
[]
[]
[]
[]
[]
[]
[null,null,1]

{"sheet":"ورقة1","index":2,"n_rows":1,"n_cols":11,"rows_kept":1,"cut":false,"hidden":false,"merged":[]}
["مسلسل","التاريخ","اسم العميل","اسم الصنف","الكمية","سعر الوحدة","سعر الجمهور","الاجمالى","عنوان العميل","اسم المندوب","منطقة المندوب"]

{"sheet":"جيل","index":3,"n_rows":54,"n_cols":12,"rows_kept":54,"cut":false,"hidden":false,"merged":[[36,0,37,7],[0,0,2,7],[3,0,3,7],[10,5,11,5],[24,1,25,1],[24,2,25,6],[26,1,26,2]]}
[]
[]
[]
["فاتـــــورة   INVOICE "]
[null,null,null,null,12013,"NO :"]
[null,null,null,null,null,"الحسابات  Accounts"]
[null,"التاريخ :","2016-04-05",null,"الأسم :","دكتور /  ايهاب علي","Name :"]
[null,"رقم امر التوريد :",null,"Order No:","الشركة :",null,"Company :"]
[null,"البائع :","د / وسام عادل",null,"العنوان :","القاهرة","Address :"]
[null,null,null,null,"المنطقة :","القاهرة2","area  :"]
[null,"الأجمالي ","سعر الوحدة ","سعر البيع للجمهور","الكمية","البيـــــــــان Description","رقم"]
[null,"Total","Unit Price","User Price","Qty",null,"NO"]
[null,{"$f":"C13*E13","v":1100},1100,1500,1,"Viscoplus Gel",1,null,null,"القاهرة","فارماكون"]
[null,0,null,null,null,null,null,null,null,"القاهرة1","د / اسكندر"]
[null,0,null,null,null,null,null,null,null,"القاهرة2","د / وسام عادل"]
[null,0,null,null,null,null,null,null,null,"الجيزة","د / سميرحسني"]
[null,0,null,null,null,null,null,null,null,"دلتا1","د / محمد علي"]
[null,0,null,null,null,null,null,null,null,"دلتا2","د / احمد فوزي"]
[null,0,null,null,null,null,null,null,null,"دلتا3","د / محمود ابو الدهب"]
[null,0,null,null,null,null,null,null,null,"الصعيد","د / محمد صالح"]
[null,0,null,null,null,null,null,null,null,"الاسكندرية","د / اميرة محمد"]
[null,0]
[null,0]
[null,0]
[null,{"$f":"SUM(B13:B24)","v":1100},{"$f":"Gm_wahdan(B25,0,\"جنيه مصري\",\"جنيهات مصرية\",\"قرش\",2)","v":"فقط ألف ومائة جنيه مصري"}]
[]
[null,"ماعدا السهو والخطأ"]
[]
[]
[null,null,null,null,null,null,null,null,null,1500,null,"Viscoplus Gel"]
[null,null,null,null,null,null,null,null,null,null,null,"بضاعة بدون قيمة"]
[]
[]
[]
[]
[]
[]
[]
[]
[]
[]
[]
[]
[]
[]
[]
[]
[]
[]
[]
[]
[]
[]
[1234567890.325,{"$f":"Gm_wahdan(A54,0,\"ريال سعودي\",\"ريالات سعودية\",\"فلس باين ولا ايه\",3)","v":"فقط مليار ومائتان وأربعة وثلاثون مليوناً وخمسمائة وسبعة وستون ألفاً وثمانمائة وتسعون ريال سعودياً  و (325) فلس باين ولا ايه"}]

{"sheet":"ورقة2","index":4,"n_rows":1,"n_cols":11,"rows_kept":1,"cut":false,"hidden":false,"merged":[]}
["مسلسل","التاريخ","اسم العميل","اسم الصنف","الكمية","سعر الوحدة","سعر الجمهور","الاجمالى","عنوان العميل","اسم المندوب","منطقة المندوب"]